fUST/lending_fUST_20250227
["ID","MTS","AMOUNT","RATE_DAILY","PERIOD"]
[354592757,1740592245125,-704.9,0.00052054,120]
[354592758,1740592245134,-500.0,0.00052054,120]
[354592759,1740592245144,-500.0,0.00052054,120]
[354592760,1740592245153,-852.27,0.00052054,120]
[354592761,1740592245162,-500.0,0.00052054,120]
[354592762,1740592245172,-500.0,0.00052054,120]
[354592763,1740592245181,-500.0,0.00052054,120]
[354592764,1740592245191,-1647.96,0.00052054,120]
[354592765,1740592245202,-1318.86,0.00052054,120]
[354592766,1740592245212,-500.0,0.00052054,120]
[354592767,1740592245222,-500.0,0.00052054,120]
[354592768,1740592245231,-500.0,0.00052054,120]
[354592769,1740592245241,-396.80034712,0.00052054,120]
[354592771,1740592245250,-500.0,0.00052054,120]
[354592772,1740592245259,-500.0,0.00052054,120]
[354592773,1740592245269,-500.0,0.00052054,120]
[354592774,1740592245278,-500.0,0.00052054,120]
[354592775,1740592245287,-500.0,0.00052054,120]
[354592776,1740592245297,-500.0,0.00052054,120]
[354592777,1740592245306,-1170.43,0.00052054,120]
[354592778,1740592245316,-500.0,0.00052054,120]
[354592779,1740592245326,-500.0,0.00052054,120]
[354592780,1740592245335,-500.0,0.00052054,120]
[354592781,1740592245344,-571.04028527,0.00052054,120]
[354592782,1740592245354,-500.0,0.00052054,120]
[354592784,1740592245363,-500.0,0.00052054,120]
[354592785,1740592245374,-500.0,0.00052054,120]
[354592786,1740592245384,-500.0,0.00052054,120]
[354592787,1740592245394,-500.0,0.00052054,120]
[354592788,1740592245403,-500.0,0.00052054,120]
[354592789,1740592245413,-500.0,0.00052054,120]
[354592790,1740592245422,-500.0,0.00052054,120]
[354592791,1740592245432,-1186.15,0.00052054,120]
[354592792,1740592245441,-500.0,0.00052054,120]
[354592793,1740592245451,-500.0,0.00052054,120]
[354592794,1740592245460,-500.0,0.00052054,120]
[354592795,1740592245469,-500.0,0.00052054,120]
[354592796,1740592245478,-500.0,0.00052054,120]
[354592797,1740592245488,-501.92752829,0.00052054,120]
[354592798,1740592245497,-500.0,0.00052054,120]
[354592799,1740592245507,-500.0,0.00052054,120]
[354592800,1740592245516,-500.0,0.00052054,120]
[354592802,1740592245525,-500.0,0.00052054,120]
[354592803,1740592245534,-532.73502446,0.00052054,120]
[354592804,1740592245543,-1127.16,0.00052054,120]
[354592805,1740592245552,-479.20830133,0.00052054,120]
[354592807,1740592245562,-500.0,0.00052054,120]
[354592809,1740592245571,-512.82,0.00052054,120]
[354592810,1740592245580,-546.59272125,0.00052054,120]
[354592811,1740592245589,-500.0,0.00052054,120]
[354592812,1740592245599,-500.77590358,0.00052054,120]
[354592813,1740592245608,-500.0,0.00052054,120]
[354592814,1740592245617,-500.0,0.00052054,120]
[354592815,1740592245629,-500.0,0.00052054,120]
[354592816,1740592245639,-541.06,0.00052054,120]
[354592817,1740592245648,-762.79,0.00052054,120]
[354592818,1740592245658,-500.0,0.00052054,120]
[354592819,1740592245667,-501.04189899,0.00052054,120]
[354592820,1740592245677,-500.0,0.00052054,120]
[354592821,1740592245687,-500.0,0.00052054,120]
[354592822,1740592245696,-500.0,0.00052054,120]
[354592823,1740592245710,-18175.08,0.00052054,3]
[354592824,1740592245720,-500.0,0.00052054,120]
[354592825,1740592245730,-977.36,0.00052054,120]
[354592826,1740592245739,-500.0,0.00052054,120]
[354592827,1740592245750,-500.0,0.00052054,120]
[354592828,1740592245759,-500.0,0.00052054,120]
[354592829,1740592245769,-213.09074272,0.00052054,120]
[354592830,1740592245778,-500.0,0.00052054,120]
[354592831,1740592245787,-2327.28,0.00052054,120]
[354592832,1740592245797,-500.0,0.00052054,120]
[354592833,1740592245806,-500.0,0.00052054,120]
[354592834,1740592245815,-500.0,0.00052054,120]
[354592835,1740592245824,-2040.4,0.00052054,120]
[354592836,1740592245834,-500.0,0.00052054,120]
[354592837,1740592245843,-500.0,0.00052054,120]
[354592838,1740592245852,-2795.43,0.00052054,120]
[354592839,1740592245862,-500.0,0.00052054,120]
[354592840,1740592245873,-500.0,0.00052054,120]
[354592841,1740592245883,-500.0,0.00052054,120]
[354592842,1740592245892,-503.02835192,0.00052054,120]
[354592843,1740592245901,-500.0,0.00052054,120]
[354592844,1740592245911,-500.0,0.00052054,120]
[354592845,1740592245920,-500.0,0.00052054,120]
[354592846,1740592245930,-500.0,0.00052054,120]
[354592847,1740592245939,-5245.59,0.00052054,120]
[354592848,1740592245948,-500.0,0.00052054,120]
[354592850,1740592245958,-1149.15,0.00052054,120]
[354592852,1740592245967,-1149.15,0.00052054,120]
[354592853,1740592245977,-1149.15,0.00052054,120]
[354592855,1740592245986,-1149.15,0.00052054,120]
[354592856,1740592245995,-1149.15,0.00052054,120]
[354592857,1740592246004,-163.84980794,0.00052054,10]
[354592858,1740592246014,-1149.15,0.00052054,120]
[354592859,1740592246023,-500.0,0.00052054,120]
[354592860,1740592246032,-1149.15,0.00052054,120]
[354592861,1740592246042,-585.72,0.00052054,120]
[354592863,1740592246051,-1149.15,0.00052054,120]
[354592865,1740592246061,-1149.15,0.00052054,120]
[354592866,1740592246070,-1149.15,0.00052054,120]
[354592867,1740592246080,-500.0,0.00052054,120]
[354592868,1740592246090,-1149.15,0.00052054,120]
[354592869,1740592246099,-1149.15,0.00052054,120]
[354592870,1740592246108,-500.0,0.00052054,120]
[354592871,1740592246117,-1149.15,0.00052054,120]
[354592872,1740592246127,-1149.15,0.00052054,120]
[354592873,1740592246137,-1149.15,0.00052054,120]
[354592874,1740592246147,-500.0,0.00052054,120]
[354592875,1740592246156,-150.35,0.00052054,120]
[354592876,1740592246165,-1149.15,0.00052054,120]
[354592878,1740592246174,-1149.15,0.00052054,120]
[354592880,1740592246184,-200.38202536,0.00052054,120]
[354592881,1740592246193,-1149.15,0.00052054,120]
[354592883,1740592246202,-500.0,0.00052054,120]
[354592885,1740592246211,-1149.15,0.00052054,120]
[354592887,1740592246221,-500.0,0.00052054,120]
[354592889,1740592246230,-500.0,0.00052054,120]
[354592890,1740592246239,-1149.15,0.00052054,120]
[354592891,1740592246249,-500.0,0.00052054,120]
[354592892,1740592246258,-1149.15,0.00052054,120]
[354592893,1740592246267,-13439.29,0.00052054,120]
[354592894,1740592246276,-500.0,0.00052054,120]
[354592895,1740592246286,-1149.15,0.00052054,120]
[354592896,1740592246295,-500.0,0.00052054,120]
[354592897,1740592246304,-500.0,0.00052054,120]
[354592898,1740592246313,-950.73,0.00052054,120]
[354592899,1740592246323,-1149.15,0.00052054,120]
[354592900,1740592246332,-150.35,0.00052054,2]
[354592901,1740592246342,-1149.27697448,0.00052054,120]
[354592902,1740592246351,-500.0,0.00052054,120]
[354592903,1740592246360,-500.0,0.00052054,120]
[354592904,1740592246369,-500.0,0.00052054,120]
[354592905,1740592246380,-500.0,0.00052054,120]
[354592906,1740592246390,-500.0,0.00052054,120]
[354592907,1740592246399,-500.0,0.00052054,21]
[354592908,1740592246408,-843.57,0.00052054,120]
[354592909,1740592246417,-500.0,0.00052054,120]
[354592910,1740592246426,-610.16,0.00052054,120]
[354592911,1740592246436,-500.0,0.00052054,120]
[354592912,1740592246446,-500.0,0.00052054,120]
[354592913,1740592246455,-3984.83,0.00052054,120]
[354592914,1740592246464,-500.0,0.00052054,120]
[354592915,1740592246474,-500.0,0.00052054,120]
[354592916,1740592246483,-739.0,0.00052054,120]
[354592917,1740592246492,-455.31173304,0.00052054,120]
[354592918,1740592246502,-477.86022106,0.00052054,120]
[354592919,1740592246511,-502.30564331,0.00052054,120]
[354592920,1740592246521,-500.0,0.00052054,120]
[354592921,1740592246530,-150.35,0.00052054,120]
[354592922,1740592246539,-500.0,0.00052054,120]
[354592923,1740592246549,-500.0,0.00052054,120]
[354592924,1740592246558,-500.0,0.00052054,120]
[354592925,1740592246568,-857.04,0.00052054,120]
[354592926,1740592246577,-9867.45,0.00052054,120]
[354592927,1740592246587,-506.36715588,0.00052054,120]
[354592928,1740592246596,-501.06205549,0.00052054,120]
[354592929,1740592246606,-500.0,0.00052054,120]
[354592930,1740592246615,-500.0,0.00052054,120]
[354592931,1740592246625,-5166.14,0.00052054,120]
[354592932,1740592246634,-755.18,0.00052054,120]
[354592933,1740592246643,-500.0,0.00052054,120]
[354592934,1740592246652,-500.0,0.00052054,120]
[354592935,1740592246662,-500.0,0.00052054,120]
[354592936,1740592246671,-500.0,0.00052054,120]
[354592937,1740592246680,-500.0,0.00052054,120]
[354592938,1740592246689,-565.71648688,0.00052054,120]
[354592939,1740592246699,-500.0,0.00052054,120]
[354592940,1740592246709,-712.9,0.00052054,120]
[354592941,1740592246723,-500.0,0.00052054,120]
[354592942,1740592246732,-500.0,0.00052054,120]
[354592943,1740592246742,-500.0,0.00052054,120]
[354592944,1740592246751,-500.0,0.00052054,120]
[354592945,1740592246762,-500.0,0.00052054,120]
[354592946,1740592246771,-876.307727,0.00052054,120]
[354592947,1740592246780,-16257.92,0.00052054,120]
[354592948,1740592246791,-11932.43,0.00052054,120]
[354592949,1740592246801,-592.61581309,0.00052054,120]
[354592950,1740592246810,-500.0,0.00052054,120]
[354592951,1740592246819,-500.0,0.00052054,120]
[354592952,1740592246828,-1739.82,0.00052054,120]
[354592953,1740592246837,-500.31723078,0.00052054,120]
[354592954,1740592246846,-500.0,0.00052054,120]
[354592955,1740592246856,-1800.0,0.00052054,120]
[354592956,1740592246865,-2385.84,0.00052054,120]
[354592957,1740592246875,-1800.0,0.00052054,120]
[354592958,1740592246884,-1800.0,0.00052054,120]
[354592959,1740592246894,-1800.0,0.00052054,120]
[354592960,1740592246903,-1800.0,0.00052054,120]
[354592961,1740592246912,-1354.33,0.00052054,120]
[354592962,1740592246921,-1800.0,0.00052054,120]
[354592963,1740592246931,-1800.0,0.00052054,120]
[354592964,1740592246940,-500.0,0.00052054,120]
[354592965,1740592246949,-1800.0,0.00052054,120]
[354592966,1740592246958,-1800.0,0.00052054,120]
[354592967,1740592246968,-1800.0,0.00052054,120]
[354592968,1740592246977,-1800.0,0.00052054,120]
[354592969,1740592246987,-631.61529679,0.00052054,120]
[354592970,1740592246996,-1800.0,0.00052054,120]
[354592971,1740592247006,-500.0,0.00052054,120]
[354592972,1740592247016,-1800.0,0.00052054,120]
[354592973,1740592247025,-1800.0,0.00052054,120]
[354592974,1740592247034,-500.0,0.00052054,120]
[354592975,1740592247043,-500.0,0.00052054,120]
[354592976,1740592247053,-1800.0,0.00052054,120]
[354592977,1740592247062,-1800.0,0.00052054,120]
[354592978,1740592247071,-1800.0,0.00052054,120]
[354592979,1740592247080,-1800.0,0.00052054,120]
[354592980,1740592247089,-501.50271976,0.00052054,120]
[354592981,1740592247098,-500.0,0.00052054,120]
[354592982,1740592247108,-1800.0,0.00052054,120]
[354592983,1740592247117,-1816.46853702,0.00052054,120]
[354592984,1740592247128,-500.0,0.00052054,120]
[354592985,1740592247138,-500.0,0.00052054,2]
[354592986,1740592247147,-1712.13,0.00052054,120]
[354592987,1740592247156,-577.75,0.00052054,120]
[354592988,1740592247165,-10817.04,0.00052054,120]
[354592989,1740592247174,-500.0,0.00052054,120]
[354592990,1740592247183,-500.0,0.00052054,120]
[354592991,1740592247192,-609.99759953,0.00052054,120]
[354592992,1740592247201,-4357.52,0.00052054,120]
[354592993,1740592247210,-151.12650469,0.00052054,62]
[354592994,1740592247220,-2369.35,0.00052054,120]
[354592995,1740592247229,-600.04,0.00052054,120]
[354592996,1740592247238,-996.27,0.00052054,120]
[354592997,1740592247247,-500.0,0.00052054,120]
[354592998,1740592247256,-2714.49,0.00052054,120]
[354592999,1740592247266,-832.58,0.00052054,120]
[354593000,1740592247275,-500.0,0.00052054,120]
[354593001,1740592247284,-322.5271228,0.00052054,120]
[354593002,1740592247294,-4920.08,0.00052054,120]
[354593003,1740592247303,-500.0,0.00052054,120]
[354593004,1740592247312,-151.0,0.00052054,120]
[354593005,1740592247320,-151.0,0.00052054,120]
[354593006,1740592247329,-151.0,0.00052054,120]
[354593007,1740592247338,-151.0,0.00052054,120]
[354593008,1740592247348,-151.0,0.00052054,120]
[354593009,1740592247358,-151.0,0.00052054,120]
[354593010,1740592247367,-154.95433,0.00052054,120]
[354593011,1740592247377,-500.0,0.00052054,120]
[354593012,1740592247387,-500.0,0.00052054,120]
[354593013,1740592247396,-500.0,0.00052054,120]
[354593014,1740592247405,-500.0,0.00052054,120]
[354593015,1740592247415,-500.0,0.00052054,120]
[354593016,1740592247424,-500.0,0.00052054,120]
[354593017,1740592247433,-500.0,0.00052054,120]
[354593018,1740592247442,-3403.53,0.00052054,120]
[354593019,1740592247451,-1228.96,0.00052054,120]
[354593020,1740592247460,-500.0,0.00052054,120]
[354593021,1740592247469,-500.0,0.00052054,120]
[354593022,1740592247479,-547.04,0.00052054,120]
[354593023,1740592247488,-2186.63,0.00052054,120]
[354593024,1740592247497,-2853.57,0.00052054,120]
[354593025,1740592247506,-500.0,0.00052054,120]
[354593026,1740592247515,-500.0,0.00052054,120]
[354593027,1740592247524,-500.0,0.00052054,120]
[354593028,1740592247533,-1106.55,0.00052054,120]
[354593029,1740592247704,-500.0,0.00052054,120]
[354593030,1740592247714,-500.0,0.00052054,120]
[354593031,1740592247726,-500.0,0.00052054,120]
[354593032,1740592247736,-500.0,0.00052054,120]
[354593033,1740592247745,-1059.13,0.00052054,120]
[354593034,1740592247755,-500.0,0.00052054,120]
[354593035,1740592247765,-500.0,0.00052054,120]
[354593036,1740592247774,-1000.0,0.00052054,120]
[354593037,1740592247783,-500.0,0.00052054,120]
[354593038,1740592247792,-500.0,0.00052054,120]
[354593039,1740592247802,-151.0,0.00052054,120]
[354593040,1740592247812,-500.0,0.00052054,120]
[354593041,1740592247821,-151.0,0.00052054,120]
[354593042,1740592247830,-151.0,0.00052054,120]
[354593043,1740592247840,-2861.46,0.00052054,120]
[354593044,1740592247849,-246.082638,0.00052054,120]
[354593045,1740592247858,-1065.47,0.00052054,120]
[354593046,1740592247867,-9983.23,0.00052054,120]
[354593047,1740592247877,-9983.23,0.00052054,120]
[354593048,1740592247886,-9983.23,0.00052054,120]
[354593049,1740592247895,-9983.23,0.00052054,120]
[354593050,1740592247905,-500.0,0.00052054,120]
[354593051,1740592247914,-9983.23,0.00052054,120]
[354593052,1740592247923,-9983.23,0.00052054,120]
[354593053,1740592247932,-9983.23,0.00052054,120]
[354593054,1740592247941,-9983.23,0.00052054,120]
[354593055,1740592247951,-500.0,0.00052054,120]
[354593056,1740592247960,-9983.23,0.00052054,120]
[354593057,1740592247970,-500.0,0.00052054,120]
[354593058,1740592247980,-500.0,0.00052054,120]
[354593059,1740592247990,-9983.23,0.00052054,120]
[354593060,1740592247999,-9983.23,0.00052054,120]
[354593061,1740592248009,-9983.23,0.00052054,120]
[354593062,1740592248019,-500.0,0.00052054,120]
[354593063,1740592248030,-9983.23,0.00052054,120]
[354593064,1740592248040,-9983.23,0.00052054,120]
[354593065,1740592248050,-521.34,0.00052054,120]
[354593066,1740592248060,-9983.23,0.00052054,120]
[354593067,1740592248070,-9983.23,0.00052054,120]
[354593068,1740592248080,-9983.23,0.00052054,120]
[354593069,1740592248090,-9983.23,0.00052054,120]
[354593070,1740592248099,-3946.59,0.00052054,120]
[354593071,1740592248109,-9983.23,0.00052054,120]
[354593072,1740592248119,-500.0,0.00052054,120]
[354593073,1740592248130,-9983.23,0.00052054,120]
[354593074,1740592248139,-500.0,0.00052054,120]
[354593075,1740592248148,-9983.23,0.00052054,120]
[354593076,1740592248158,-9983.23,0.00052054,120]
[354593077,1740592248167,-9983.23,0.00052054,120]
[354593078,1740592248177,-9983.38527717,0.00052054,120]
[354593079,1740592248186,-589.12,0.00052054,120]
[354593080,1740592248195,-500.0,0.00052054,120]
[354593081,1740592248204,-930.43,0.00052054,120]
[354593082,1740592248213,-500.23486794,0.00052054,120]
[354593083,1740592248223,-954.44,0.00052054,30]
[354593084,1740592248232,-500.0,0.00052054,120]
[354593085,1740592248242,-500.0,0.00052054,120]
[354593086,1740592248251,-500.0,0.00052054,120]
[354593087,1740592248260,-500.0,0.00052054,120]
[354593088,1740592248269,-500.0,0.00052054,120]
[354593089,1740592248279,-632.9,0.00052054,120]
[354593090,1740592248288,-990.14,0.00052054,120]
[354593091,1740592248297,-965.27,0.00052054,120]
[354593092,1740592248306,-196384.35,0.00052054,7]
[354593093,1740592248315,-500.0,0.00052054,120]
[354593094,1740592248325,-3698.95,0.00052054,120]
[354593095,1740592248334,-3173.86,0.00052054,120]
[354593096,1740592248343,-500.0,0.00052054,120]
[354593097,1740592248352,-500.0,0.00052054,120]
[354593098,1740592248361,-490.08041905,0.00052054,120]
[354593099,1740592248370,-500.0,0.00052054,120]
[354593100,1740592248380,-662.27,0.00052054,120]
[354593101,1740592248390,-500.0,0.00052054,120]
[354593102,1740592248400,-500.0,0.00052054,120]
[354593103,1740592248409,-500.0,0.00052054,120]
[354593104,1740592248418,-1519.61,0.00052054,120]
[354593105,1740592248427,-1136.86,0.00052054,120]
[354593106,1740592248436,-500.0,0.00052054,120]
[354593107,1740592248446,-500.0,0.00052054,120]
[354593108,1740592248455,-500.0,0.00052054,120]
[354593109,1740592248464,-500.0,0.00052054,120]
[354593110,1740592248474,-500.0,0.00052054,120]
[354593111,1740592248483,-1341.49,0.00052054,120]
[354593112,1740592248492,-3245.33,0.00052054,120]
[354593113,1740592248501,-4831.45,0.00052054,120]
[354593114,1740592248510,-483.625185,0.00052054,120]
[354593115,1740592248520,-483.625185,0.00052054,120]
[354593116,1740592248529,-483.625185,0.00052054,120]
[354593117,1740592248539,-483.625185,0.00052054,120]
[354593118,1740592248548,-500.0,0.00052054,120]
[354593119,1740592248557,-483.625185,0.00052054,120]
[354593120,1740592248567,-577.28,0.00052054,120]
[354593121,1740592248576,-500.0,0.00052054,120]
[354593122,1740592248586,-483.625185,0.00052054,120]
[354593123,1740592248595,-483.625185,0.00052054,120]
[354593124,1740592248605,-4327.53,0.00052054,120]
[354593125,1740592248615,-734.350464,0.00052054,120]
[354593126,1740592248624,-483.625185,0.00052054,120]
[354593127,1740592248634,-734.350464,0.00052054,120]
[354593128,1740592248644,-483.625185,0.00052054,120]
[354593129,1740592248653,-734.350464,0.00052054,120]
[354593130,1740592248663,-483.625185,0.00052054,120]
[354593131,1740592248672,-483.625185,0.00052054,120]
[354593132,1740592248681,-734.350464,0.00052054,120]
[354593133,1740592248690,-483.625185,0.00052054,120]
[354593134,1740592248699,-734.350464,0.00052054,120]
[354593135,1740592248715,-734.350464,0.00052054,120]
[354593136,1740592248732,-596.8,0.00052054,120]
[354593137,1740592248741,-500.0,0.00052054,120]
[354593138,1740592248750,-500.0,0.00052054,30]
[354593139,1740592248759,-734.350464,0.00052054,120]
[354593140,1740592248769,-500.0,0.00052054,120]
[354593141,1740592248779,-734.350464,0.00052054,120]
[354593142,1740592248788,-734.350464,0.00052054,120]
[354593143,1740592248797,-697.81,0.00052054,120]
[354593144,1740592248807,-734.350464,0.00052054,120]
[354593145,1740592248816,-734.350464,0.00052054,120]
[354593146,1740592248826,-734.350464,0.00052054,120]
[354593147,1740592248835,-500.0,0.00052054,120]
[354593148,1740592248844,-500.0,0.00052054,120]
[354593149,1740592248854,-745.45,0.00052054,120]
[354593150,1740592248865,-2134.29,0.00052054,120]
[354593151,1740592248874,-500.0,0.00052054,120]
[354593152,1740592248887,-3283.96,0.00052054,120]
[354593153,1740592248897,-500.0,0.00052054,120]
[354593154,1740592248907,-500.0,0.00052054,120]
[354593155,1740592248916,-1399.7,0.00052054,120]
[354593156,1740592248925,-1529.84,0.00052054,120]
[354593157,1740592248935,-500.0,0.00052054,120]
[354593158,1740592248944,-500.0,0.00052054,120]
[354593159,1740592248953,-500.0,0.00052054,120]
[354593160,1740592248963,-500.0,0.00052054,120]
[354593161,1740592248972,-8790.59,0.00052054,120]
[354593162,1740592248981,-500.0,0.00052054,120]
[354593163,1740592248991,-500.0,0.00052054,120]
[354593164,1740592249000,-500.0,0.00052054,120]
[354593165,1740592249010,-505.86075972,0.00052054,120]
[354593166,1740592249019,-500.0,0.00052054,120]
[354593167,1740592249028,-200.0,0.00052054,7]
[354593168,1740592249037,-505.52110044,0.00052054,120]
[354593169,1740592249046,-2573.0,0.00052054,120]
[354593170,1740592249056,-8996.37,0.00052054,120]
[354593171,1740592249064,-500.0,0.00052054,120]
[354593172,1740592249074,-151.0,0.00052054,120]
[354593173,1740592249084,-151.0,0.00052054,120]
[354593174,1740592249093,-500.0,0.00052054,120]
[354593175,1740592249103,-151.0,0.00052054,120]
[354593176,1740592249112,-151.0,0.00052054,120]
[354593177,1740592249122,-151.0,0.00052054,120]
[354593178,1740592249134,-151.0,0.00052054,120]
[354593179,1740592249143,-151.0,0.00052054,120]
[354593180,1740592249154,-1031.17,0.00052054,120]
[354593181,1740592249163,-151.0,0.00052054,120]
[354593182,1740592249172,-151.0,0.00052054,120]
[354593183,1740592249182,-500.0,0.00052054,120]
[354593184,1740592249191,-500.0,0.00052054,120]
[354593185,1740592249201,-151.0,0.00052054,120]
[354593186,1740592249211,-151.0,0.00052054,120]
[354593187,1740592249220,-151.0,0.00052054,120]
[354593188,1740592249230,-151.0,0.00052054,120]
[354593189,1740592249239,-151.0,0.00052054,120]
[354593190,1740592249248,-151.0,0.00052054,120]
[354593191,1740592249258,-151.0,0.00052054,120]
[354593192,1740592249268,-500.0,0.00052054,120]
[354593193,1740592249278,-151.0,0.00052054,120]
[354593194,1740592249287,-161.534142,0.00052054,120]
[354593195,1740592249297,-1000.0,0.00052054,2]
[354593196,1740592249307,-500.0,0.00052054,120]
[354593197,1740592249317,-500.0,0.00052054,120]
[354593198,1740592249326,-500.0,0.00052054,120]
[354593199,1740592249342,-500.0,0.00052054,120]
[354593200,1740592249352,-500.0,0.00052054,120]
[354593201,1740592249361,-818.12,0.00052054,120]
[354593202,1740592249372,-500.0,0.00052054,120]
[354593203,1740592249387,-500.0,0.00052054,120]
[354593204,1740592249397,-1347.07,0.00052054,120]
[354593205,1740592249407,-500.0,0.00052054,120]
[354593206,1740592249418,-500.0,0.00052054,120]
[354593207,1740592249429,-500.0,0.00052054,120]
[354593208,1740592249439,-500.0,0.00052054,120]
[354593209,1740592249449,-666.65,0.00052054,120]
[354593210,1740592249459,-500.0,0.00052054,120]
[354593211,1740592249471,-151.0,0.00052054,120]
[354593212,1740592249481,-151.0,0.00052054,120]
[354593213,1740592249492,-500.0,0.00052054,120]
[354593214,1740592249502,-151.0,0.00052054,120]
[354593215,1740592249513,-14718.66,0.00052054,120]
[354593216,1740592249523,-151.0,0.00052054,120]
[354593217,1740592249533,-151.0,0.00052054,120]
[354593218,1740592249543,-151.0,0.00052054,120]
[354593219,1740592249553,-151.0,0.00052054,120]
[354593220,1740592249563,-151.0,0.00052054,120]
[354593221,1740592249573,-152.84428,0.00052054,120]
[354593222,1740592249583,-151.0,0.00052054,30]
[354593223,1740592249593,-151.0,0.00052054,30]
[354593224,1740592249603,-500.0,0.00052054,120]
[354593225,1740592249613,-151.0,0.00052054,30]
[354593226,1740592249623,-151.0,0.00052054,30]
[354593227,1740592249637,-151.0,0.00052054,30]
[354593228,1740592249647,-2055.63,0.00052054,120]
[354593229,1740592249657,-3039.09,0.00052054,120]
[354593230,1740592249667,-151.0,0.00052054,30]
[354593231,1740592249676,-501.31845715,0.00052054,120]
[354593232,1740592249686,-781.64,0.00052054,120]
[354593233,1740592249695,-151.0,0.00052054,30]
[354593234,1740592249705,-3811.73,0.00052054,120]
[354593235,1740592249719,-151.0,0.00052054,30]
[354593236,1740592249728,-500.0,0.00052054,120]
[354593237,1740592249737,-151.0,0.00052054,30]
[354593238,1740592249746,-151.0,0.00052054,30]
[354593239,1740592249756,-151.0,0.00052054,30]
[354593240,1740592249765,-519.83,0.00052054,120]
[354593241,1740592249774,-293.017292,0.00052054,30]
[354593242,1740592249784,-601.53,0.00052054,120]
[354593243,1740592249793,-500.0,0.00052054,120]
[354593244,1740592249804,-500.0,0.00052054,120]
[354593245,1740592249814,-511.99,0.00052054,120]
[354593246,1740592249823,-665.27,0.00052054,120]
[354593247,1740592249832,-48679.71,0.00052054,6]
[354593248,1740592249841,-500.0,0.00052054,120]
[354593249,1740592249850,-500.0,0.00052054,120]
[354593250,1740592249859,-500.0,0.00052054,120]
[354593251,1740592249868,-500.0,0.00052054,30]
[354593252,1740592249878,-874.44,0.00052054,120]
[354593253,1740592249889,-874.44,0.00052054,120]
[354593254,1740592249898,-874.44,0.00052054,120]
[354593255,1740592249908,-500.0,0.00052054,120]
[354593256,1740592249917,-500.0,0.00052054,120]
[354593257,1740592249926,-874.44,0.00052054,120]
[354593258,1740592249935,-874.44,0.00052054,120]
[354593259,1740592249944,-874.44,0.00052054,120]
[354593260,1740592249953,-874.44,0.00052054,120]
[354593261,1740592249962,-1788.2,0.00052054,120]
[354593262,1740592249971,-874.44,0.00052054,120]
[354593263,1740592249980,-874.44,0.00052054,120]
[354593264,1740592249989,-874.44,0.00052054,120]
[354593265,1740592249999,-500.0,0.00052054,120]
[354593266,1740592250008,-4139.29,0.00052054,120]
[354593267,1740592250017,-2771.28,0.00052054,120]
[354593268,1740592250027,-874.44,0.00052054,120]
[354593269,1740592250035,-500.0,0.00052054,120]
[354593270,1740592250045,-874.44,0.00052054,120]
[354593271,1740592250054,-500.0,0.00052054,120]
[354593272,1740592250063,-151.0,0.00052054,120]